bitfinex-derivatives/quotes_BNBF0:USTF0_20250507
["timestamp","ask_amount","ask_price","bid_price","bid_amount"]
[1746603383954,0.28719862,606.67,605.03,3.10656212]
[1746603385253,0.30325697,606.66,605.03,3.10656212]
[1746603387652,0.30325697,606.72,605.03,3.10656212]
[1746603389655,0.32964678,606.71,605.03,3.10656212]
[1746603389850,0.30325697,606.7,605.03,3.10656212]
[1746603390052,0.32965765,606.69,605.03,3.10656212]
[1746603390356,0.61686575,606.69,605.03,3.10656212]
[1746603390558,0.30325697,606.68,605.03,3.10656212]
[1746603393857,0.28722943,606.67,605.03,3.10656212]
[1746603394062,0.61689794,606.67,605.03,3.10656212]
[1746603394262,0.30325697,606.66,605.03,3.10656212]
[1746603394462,0.32967938,606.65,605.03,3.10656212]
[1746603394664,0.30325697,606.64,605.03,3.10656212]
[1746603394857,0.32969025,606.63,605.03,3.10656212]
[1746603395162,0.30325697,606.62,605.03,3.10656212]
[1746603395365,0.32970112,606.61,605.03,3.10656212]
[1746603395659,0.30325697,606.6,605.03,3.10656212]
[1746603395864,0.32971199,606.59,605.03,3.10656212]
[1746603396163,0.30325697,606.58,605.03,3.10656212]
[1746603396359,0.32972286,606.57,605.03,3.10656212]
[1746603396758,0.30325697,606.56,605.03,3.10656212]
[1746603396963,0.63298527,606.56,605.03,3.10656212]
[1746603397363,0.30325697,606.55,605.03,3.10656212]
[1746603399366,0.32973917,606.54,605.03,3.10656212]
[1746603399562,0.30325697,606.53,605.03,3.10656212]
[1746603399765,0.32975004,606.52,605.03,3.10656212]
[1746603400265,0.30325697,606.51,605.03,3.10656212]
[1746603402868,0.28726855,606.5,605.03,3.10656212]
[1746603403367,0.30325697,606.49,605.03,3.10656212]
[1746603405669,0.28727567,606.48,605.03,3.10656212]
[1746603406070,0.30325697,606.47,605.03,3.10656212]
[1746603408669,0.28728041,606.46,605.03,3.10656212]
[1746603408871,0.30325697,606.45,605.03,3.10656212]
[1746603411074,0.28728041,606.46,605.03,3.10656212]
[1746603411269,0.32975004,606.52,605.03,3.10656212]
[1746603411572,0.59073333,606.45,605.03,3.10656212]
[1746603411872,0.28732311,606.45,605.03,3.10656212]
[1746603412074,0.63320376,606.44,605.03,3.10656212]
[1746603412576,0.6332092,606.43,605.03,3.10656212]
[1746603412774,0.32980442,606.42,605.03,3.10656212]
[1746603413070,0.30341022,606.41,605.03,3.10656212]
[1746603413276,0.3298153,606.4,605.03,3.10656212]
[1746603413670,0.30341022,606.39,605.03,3.10656212]
[1746603413874,0.32982618,606.38,605.03,3.10656212]
[1746603414573,0.59073214,606.37,605.03,3.10656212]
[1746603415076,0.28732192,606.37,605.03,3.10656212]
[1746603415276,0.30349016,606.36,605.03,3.10656212]
[1746603415578,0.63332722,606.36,605.03,3.10656212]
[1746603415973,0.30349016,606.35,605.03,3.10656212]
[1746603417773,0.28732548,606.34,605.03,3.10656212]
[1746603417972,0.30349016,606.33,605.03,3.10656212]
[1746603420274,0.32983706,606.36,605.03,3.10656212]
[1746603420478,0.30348318,606.35,605.03,3.10656212]
[1746603420681,0.28732785,606.32,605.03,3.10656212]
[1746603420876,0.30348318,606.31,605.03,3.10656212]
[1746603423479,0.30348318,606.35,605.03,3.10656212]
[1746603423679,0.28733022,606.3,605.03,3.10656212]
[1746603424076,0.30348318,606.29,605.03,3.10656212]
[1746603426583,0.59081578,606.28,605.03,3.10656212]
[1746603426885,0.30348318,606.27,605.03,3.10656212]
[1746603427182,0.2873326,606.28,605.03,3.10656212]
[1746603427384,0.30346788,606.27,605.03,3.10656212]
[1746603429485,0.30346788,606.35,605.03,3.10656212]
[1746603429680,0.28732548,606.26,605.03,3.10656212]
[1746603429886,0.30346788,606.25,605.03,3.10656212]
[1746603430484,0.30346788,606.35,605.03,3.10656212]
[1746603430686,0.32983706,606.36,605.03,3.10656212]
[1746603431182,0.30346822,606.35,605.03,3.10656212]
[1746603431380,0.59070714,606.35,605.03,3.10656212]
[1746603431584,0.30346822,606.34,605.03,3.10656212]
[1746603432588,0.28732666,606.33,605.03,3.10656212]
[1746603433187,0.30346822,606.32,605.03,3.10656212]
[1746603438494,0.30346822,606.35,605.03,3.10656212]
[1746603438694,0.28732548,606.31,605.03,3.10656212]
[1746603439096,0.30346822,606.3,605.03,3.10656212]
[1746603441693,0.28733141,606.29,605.03,3.10656212]
[1746603442099,0.30346822,606.28,605.03,3.10656212]
[1746603444599,0.28733378,606.27,605.03,3.10656212]
[1746603444900,0.30346822,606.26,605.03,3.10656212]
[1746603446095,0.28733378,606.27,605.03,3.10656212]
[1746603446395,0.30347199,606.26,605.03,3.10656212]
[1746603447500,0.30347199,606.35,605.03,3.10656212]
[1746603447697,0.28732548,606.25,605.03,3.10656212]
[1746603447999,0.30347199,606.35,605.03,3.10656212]
[1746603448195,0.30347199,606.24,605.03,3.10656212]
[1746603448399,0.30347199,606.35,605.03,3.10656212]
[1746603448802,0.28732548,606.34,605.03,3.10656212]
[1746603449003,0.30347199,606.33,605.03,3.10656212]
[1746603450702,0.30347199,606.35,605.03,3.10656212]
[1746603450902,0.28732548,606.32,605.03,3.10656212]
[1746603451401,0.30347199,606.31,605.03,3.10656212]
[1746603453804,0.28733022,606.3,605.03,3.10656212]
[1746603454004,0.30347199,606.29,605.03,3.10656212]
[1746603456800,0.2873326,606.28,605.03,3.10656212]
[1746603457403,0.30347199,606.27,605.03,3.10656212]
[1746603459506,0.30347199,606.35,605.03,3.10656212]
[1746603459707,0.28732548,606.26,605.03,3.10656212]
[1746603460203,0.30347199,606.35,605.03,3.10656212]
[1746603460403,0.30347199,606.25,605.03,3.10656212]
[1746603460608,0.30347199,606.34,605.03,3.10656212]
[1746603460809,0.30347199,606.24,605.03,3.10656212]
[1746603461010,0.28732548,606.33,605.03,3.10656212]
[1746603461308,0.30347199,606.32,605.03,3.10656212]
[1746603462708,0.30347199,606.35,605.03,3.10656212]
[1746603463008,0.28732548,606.31,605.03,3.10656212]
[1746603463409,0.30347199,606.3,605.03,3.10656212]
[1746603463710,0.28732548,606.31,605.03,3.10656212]
[1746603463910,0.30347246,606.3,605.03,3.10656212]
[1746603465606,0.30347246,606.35,605.03,3.10656212]
[1746603465811,0.28732548,606.29,605.03,3.10656212]
[1746603466312,0.30347246,606.28,605.03,3.10656212]
[1746603468713,0.2873148,606.27,605.03,3.10656212]
[1746603469219,0.30347246,606.26,605.03,3.10656212]
[1746603471514,0.30347246,606.35,605.03,3.10656212]
[1746603471811,0.2873065,606.25,605.03,3.10656212]
[1746603472010,0.32983706,606.36,605.03,3.10656212]
[1746603472220,0.30342774,606.24,605.03,3.10656212]
[1746603472418,0.30342774,606.35,605.03,3.10656212]
[1746603473316,0.2873065,606.34,605.03,3.10656212]
[1746603473914,0.30342774,606.33,605.03,3.10656212]
[1746603474718,0.28730887,606.32,605.03,3.10656212]
[1746603475014,0.59073661,606.32,605.03,3.10656212]
[1746603475217,0.28730887,606.32,605.03,3.10656212]
[1746603476118,0.30342774,606.31,605.03,3.10656212]
[1746603476720,0.28730887,606.32,605.03,3.10656212]
[1746603477420,0.32983706,606.36,605.03,3.10656212]
[1746603477716,0.28729939,606.31,605.03,3.10656212]
[1746603480323,0.32983706,606.36,605.03,3.10656212]
[1746603480726,0.28718084,606.35,605.03,3.10656212]
[1746603483321,0.32983706,606.36,605.03,3.10656212]
[1746603483725,0.28718084,606.35,605.03,3.10656212]
[1746603486226,0.30341303,606.34,605.03,3.10656212]
[1746603486726,0.28730057,606.33,605.03,3.10656212]
[1746603487027,0.30341303,606.32,605.03,3.10656212]
[1746603489630,0.30341303,606.35,605.03,3.10656212]
[1746603489930,0.28729939,606.31,605.03,3.10656212]
[1746603490231,0.30341303,606.3,605.03,3.10656212]
[1746603492634,0.28732192,606.29,605.03,3.10656212]
[1746603493029,0.30341303,606.28,605.03,3.10656212]
[1746603493232,0.63329361,606.28,605.03,3.10656212]
[1746603493835,0.30341303,606.27,605.03,3.10656212]
[1746603495637,0.28734209,606.26,605.03,3.10656212]
[1746603496137,0.30341303,606.25,605.03,3.10656212]
[1746603501741,0.28734683,606.24,605.03,3.10656212]
[1746603502341,0.30341303,606.23,605.03,3.10656212]
[1746603503741,0.28734683,606.24,605.03,3.10656212]
[1746603504137,0.30349575,606.23,605.03,3.10656212]
[1746603504739,0.28734683,606.22,605.03,3.10656212]
[1746603505241,0.30349575,606.21,605.03,3.10656212]
[1746603507644,0.28737056,606.2,605.03,3.10656212]
[1746603508048,0.30349575,606.19,605.03,3.10656212]
[1746603512253,0.30349575,606.19,605.03,2.776]
[1746603513655,0.30349575,606.84,605.03,2.776]
[1746603513855,0.28729583,606.18,605.03,2.776]
[1746603514055,0.30349575,606.83,605.03,2.776]
[1746603514356,0.30349575,606.82,605.03,2.776]
[1746603514554,0.30349575,606.81,605.03,2.776]
[1746603514856,0.30349575,606.8,605.03,2.776]
[1746603515049,0.30349575,606.79,605.03,2.776]
[1746603515253,0.30349575,606.78,605.03,2.776]
[1746603515557,0.30349575,606.77,605.03,2.776]
[1746603515856,0.30349575,606.76,605.03,2.776]
[1746603516054,0.30349575,606.75,605.03,2.776]
[1746603516259,0.30349575,606.74,605.03,2.776]
[1746603516458,0.30349575,606.73,605.03,2.776]
[1746603516859,0.30349575,606.72,605.03,2.776]
[1746603517260,0.30349575,606.71,605.03,2.776]
[1746603517461,0.30349575,606.7,605.03,2.776]
[1746603517656,0.30349575,606.69,605.03,2.776]
[1746603517858,0.30349575,606.68,605.03,2.776]
[1746603518161,0.30349575,606.67,605.03,2.776]
[1746603518357,0.30349575,606.66,605.03,2.776]
[1746603518560,0.30349575,606.65,605.03,2.776]
[1746603518863,0.30349575,606.64,605.03,2.776]
[1746603519363,0.30349575,606.63,605.03,2.776]
[1746603519662,0.30349575,606.62,605.03,2.776]
[1746603520264,0.30349575,606.61,605.03,2.776]
[1746603520657,0.30349575,606.6,605.03,2.776]
[1746603520962,0.30349575,606.59,605.03,2.776]
[1746603521264,0.28730887,606.63,605.03,2.776]
[1746603521265,0.30349575,606.62,605.03,2.776]
[1746603521558,0.30349575,606.61,605.03,2.776]
[1746603521858,0.30349575,606.6,605.03,2.776]
[1746603522258,0.30349575,606.59,605.03,2.776]
[1746603522757,0.28731243,606.58,605.03,2.776]
[1746603522963,0.30349575,606.57,605.03,2.776]
[1746603525764,0.28728278,606.56,605.03,2.776]
[1746603526260,0.30349575,606.55,605.03,2.776]
[1746603531663,0.28732073,606.54,605.03,2.776]
[1746603532069,0.30349575,606.53,605.03,2.776]
[1746603532970,0.28732073,606.54,605.03,2.776]
[1746603533372,0.3035101,606.53,605.03,2.776]
[1746603534874,0.28729583,606.52,605.03,2.776]
[1746603535173,0.3035101,606.51,605.03,2.776]
[1746603535874,0.28729583,606.52,605.03,2.776]
[1746603536067,0.32976092,606.5,605.03,2.776]
[1746603536373,0.30351191,606.49,605.03,2.776]
[1746603536575,0.32977723,606.47,605.03,2.776]
[1746603537871,0.28732904,606.46,605.03,2.776]
[1746603538175,0.63330002,606.45,605.03,2.776]
[1746603538376,0.32979354,606.44,605.03,2.776]
[1746603538575,0.63330545,606.44,605.03,2.776]
[1746603538875,0.30351191,606.43,605.03,2.776]
[1746603539076,0.32980442,606.42,605.03,2.776]
[1746603540076,0.30351191,606.41,605.03,2.776]
[1746603540277,0.3298153,606.4,605.03,2.776]
[1746603540476,0.30351191,606.39,605.03,2.776]
[1746603540677,0.32982618,606.38,605.03,2.776]
[1746603541080,0.30351191,606.37,605.03,2.776]
[1746603541278,0.32983706,606.36,605.03,2.776]
[1746603541479,0.30351191,606.35,605.03,2.776]
[1746603541674,0.32984794,606.34,605.03,2.776]
[1746603541978,0.30351191,606.33,605.03,2.776]
[1746603542882,0.32985882,606.32,605.03,2.776]
[1746603543880,0.59085993,606.31,605.03,2.776]
[1746603544080,0.3298697,606.3,605.03,2.776]
[1746603544281,0.63338161,606.3,605.03,2.776]
[1746603544476,0.30351191,606.29,605.03,2.776]
[1746603544781,0.32988058,606.28,605.03,2.776]
[1746603545177,0.30351191,606.27,605.03,2.776]
[1746603546679,0.28735395,606.26,605.03,2.776]
[1746603547184,0.30351191,606.25,605.03,2.776]
[1746603548384,0.30351191,606.25,605.04,0.33055665]
[1746603549585,0.30351191,606.27,605.04,0.33055665]
[1746603549785,0.28735276,606.24,605.04,0.33055665]
[1746603550282,0.30351191,606.23,605.04,0.33055665]
[1746603551288,0.28735276,606.24,605.04,1.12255665]
[1746603551484,0.30349086,606.23,605.04,1.12255665]
[1746603551682,0.30349086,606.23,605.04,1.67255665]
[1746603551882,0.30349086,606.23,605.04,2.18955665]
[1746603552893,0.28734564,606.22,605.04,2.18955665]
[1746603553085,0.30349086,606.21,605.04,2.18955665]
[1746603554986,0.28734564,606.22,605.04,2.18955665]
[1746603555291,0.30349343,606.21,605.04,2.18955665]
[1746603558793,0.28735276,606.2,605.04,2.18955665]
[1746603559293,0.30349343,606.19,605.04,2.18955665]
[1746603561191,0.30349343,606.19,605.04,2.99255665]
[1746603561995,0.28734564,606.18,605.04,2.99255665]
[1746603562195,0.59083907,606.18,605.04,2.99255665]
[1746603562395,0.30349343,606.17,605.04,2.99255665]
[1746603564793,0.28734564,606.16,605.04,2.99255665]
[1746603565294,0.30349343,606.15,605.04,2.99255665]
[1746603565898,0.30349527,606.14,605.04,2.99255665]
[1746603566299,0.30349527,606.15,605.04,2.99255665]
[1746603567697,0.28735988,606.14,605.04,2.99255665]
[1746603567898,0.30349527,606.13,605.04,2.99255665]
[1746603570797,0.28734564,606.12,605.04,2.99255665]
[1746603571102,0.30349527,606.11,605.04,2.99255665]
[1746603573599,0.28736463,606.1,605.04,2.99255665]
[1746603573902,0.30349527,606.09,605.04,2.99255665]
[1746603576709,0.28737412,606.08,605.04,2.99255665]
[1746603577102,0.30349527,606.07,605.04,2.99255665]
[1746603579714,0.30349527,606.27,605.04,2.99255665]
[1746603579915,0.28736225,606.06,605.04,2.99255665]
[1746603580111,0.63338673,606.26,605.04,2.99255665]
[1746603580316,0.3298969,606.25,605.04,2.99255665]
[1746603580515,0.63339217,606.25,605.04,2.99255665]
[1746603580716,0.30349527,606.24,605.04,2.99255665]
[1746603580912,0.32990779,606.23,605.04,2.99255665]
[1746603581319,0.28737175,606.22,605.04,2.99255665]
[1746603581514,0.61728498,606.22,605.04,2.99255665]
[1746603581713,0.30349527,606.21,605.04,2.99255665]
[1746603582116,0.30349527,606.2,605.04,2.99255665]
[1746603582419,0.63341938,606.2,605.04,2.99255665]
[1746603582613,0.30349527,606.19,605.04,2.99255665]
[1746603582814,0.30349527,606.18,605.04,2.99255665]
[1746603583218,0.30349527,606.17,605.04,2.99255665]
[1746603583520,0.30349527,606.16,605.04,2.99255665]
[1746603584020,0.30349527,606.15,605.04,2.99255665]
[1746603584421,0.30349527,606.14,605.04,2.99255665]
[1746603584720,0.30349527,606.13,605.04,2.99255665]
[1746603585021,0.30349527,606.12,605.04,2.99255665]
[1746603585321,0.30349527,606.18,605.04,2.99255665]
[1746603585715,0.30349527,606.17,605.04,2.99255665]
[1746603585917,0.28738243,606.17,605.04,2.99255665]
[1746603586221,0.30349527,606.16,605.04,2.99255665]
[1746603588821,0.28738124,606.15,605.04,2.99255665]
[1746603589221,0.30349527,606.14,605.04,2.99255665]
[1746603589418,0.28738124,606.15,605.04,2.99255665]
[1746603589922,0.30355575,606.14,605.04,2.99255665]
[1746603591624,0.32992411,606.2,605.04,2.99255665]
[1746603591826,0.28738717,606.13,605.04,2.99255665]
[1746603592124,0.30355555,606.12,605.04,2.99255665]
[1746603594825,0.28738954,606.11,605.04,2.99255665]
[1746603595125,0.30355555,606.1,605.04,2.99255665]
[1746603597824,0.28738124,606.09,605.04,2.99255665]
[1746603598223,0.30355555,606.08,605.04,2.99255665]
[1746603600931,0.28738124,606.07,605.04,2.99255665]
[1746603601133,0.30355555,606.06,605.04,2.99255665]
[1746603602233,0.28738124,606.07,605.04,2.99255665]
[1746603603633,0.28735514,606.07,605.04,2.99255665]
[1746603605929,0.30351675,606.06,605.04,2.99255665]
[1746603606833,0.28737768,606.05,605.04,2.99255665]
[1746603609435,0.32992411,606.2,605.04,2.99255665]
[1746603609731,0.3035236,606.19,605.04,2.99255665]
[1746603609935,0.5908052,606.19,605.04,2.99255665]
[1746603610335,0.3035236,606.18,605.04,2.99255665]
[1746603618739,0.28736819,606.17,605.04,2.99255665]
[1746603619139,0.3035236,606.16,605.04,2.99255665]
[1746603621742,0.3035236,606.19,605.04,2.99255665]
[1746603621940,0.28737056,606.15,605.04,2.99255665]
[1746603622142,0.3035236,606.14,605.04,2.99255665]
[1746603624747,0.32992411,606.2,605.04,2.99255665]
[1746603625042,0.287367,606.13,605.04,2.99255665]
[1746603625247,0.30352022,606.12,605.04,2.99255665]
[1746603626147,0.287367,606.13,605.04,2.99255665]
[1746603627447,0.32992411,606.2,605.04,2.99255665]
[1746603627751,0.287367,606.12,605.04,2.99255665]
[1746603627947,0.32992411,606.2,605.04,2.99255665]
[1746603628749,0.28730294,606.19,605.04,2.99255665]
[1746603630451,0.32992411,606.2,605.04,2.99255665]
[1746603630853,0.287367,606.18,605.04,2.99255665]
[1746603636158,0.3035042,606.17,605.04,2.99255665]
[1746603636756,0.28735276,606.16,605.04,2.99255665]
[1746603637256,0.3035042,606.15,605.04,2.99255665]
[1746603637453,0.28735276,606.16,605.04,2.99255665]
[1746603637858,0.30350391,606.15,605.04,2.99255665]
[1746603639759,0.28735514,606.14,605.04,2.99255665]
[1746603640155,0.30350391,606.13,605.04,2.99255665]
[1746603643059,0.28736463,606.12,605.04,2.99255665]
[1746603643464,0.30350391,606.11,605.04,2.99255665]
[1746603645564,0.32992411,606.2,605.04,2.99255665]
[1746603645766,0.287367,606.1,605.04,2.99255665]
[1746603647868,0.28735751,606.18,605.04,2.99255665]
[1746603648066,0.30350723,606.17,605.04,2.99255665]
[1746603648667,0.30350723,606.19,605.04,2.99255665]
[1746603648963,0.28735988,606.16,605.04,2.99255665]
[1746603649366,0.30350723,606.15,605.04,2.99255665]
[1746603654768,0.28736225,606.14,605.04,2.99255665]
[1746603655068,0.30350723,606.13,605.04,2.99255665]
[1746603655771,0.28736225,606.14,605.04,2.99255665]
[1746603657371,0.32992411,606.2,605.04,2.99255665]
[1746603657670,0.30348749,606.19,605.04,2.99255665]
[1746603657972,0.28727567,606.19,605.04,2.99255665]
[1746603658172,0.30348749,606.18,605.04,2.99255665]
[1746603658472,0.28727567,606.19,605.04,2.99255665]
[1746603659471,0.30348778,606.18,605.04,2.99255665]
[1746603661071,0.28727567,606.19,605.04,2.99255665]
[1746603661274,0.30349315,606.18,605.04,2.99255665]
[1746603663874,0.28734209,606.17,605.04,2.99255665]
[1746603664075,0.30349315,606.16,605.04,2.99255665]
[1746603666878,0.28734446,606.15,605.04,2.99255665]
[1746603667173,0.30349315,606.14,605.04,2.99255665]
[1746603669776,0.28735395,606.13,605.04,2.99255665]
[1746603670175,0.30349315,606.12,605.04,2.99255665]
[1746603670781,0.28735395,606.13,605.04,2.99255665]
[1746603672482,0.32992411,606.2,605.04,2.99255665]
[1746603672779,0.303501,606.19,605.04,2.99255665]
[1746603673082,0.59079564,606.19,605.04,2.99255665]
[1746603673484,0.303501,606.18,605.04,2.99255665]
[1746603675880,0.28735751,606.17,605.04,2.99255665]
[1746603676687,0.303501,606.16,605.04,2.99255665]
[1746603677086,0.28735751,606.17,605.04,2.99255665]
[1746603678485,0.32992411,606.2,605.04,2.99255665]
[1746603678683,0.28733378,606.16,605.04,2.99255665]
[1746603681583,0.32992411,606.2,605.04,2.99255665]
[1746603681888,0.28733378,606.16,605.04,2.99255665]
[1746603684391,0.32992411,606.2,605.04,2.99255665]
[1746603684691,0.28733378,606.16,605.04,2.99255665]
[1746603686092,0.32992411,606.2,605.04,2.99255665]
[1746603688093,0.30344274,606.19,605.04,2.99255665]
[1746603693797,0.32992411,606.2,605.04,2.99255665]
[1746603693993,0.6172484,606.2,605.04,2.99255665]
[1746603694197,0.30345197,606.19,605.04,2.99255665]
[1746603697599,0.6172484,606.2,605.04,2.99255665]
[1746603697899,0.30345009,606.19,605.04,2.99255665]
[1746603700301,0.6172484,606.2,605.04,2.99255665]
[1746603700703,0.30344925,606.19,605.04,2.99255665]
[1746603706907,0.6172484,606.2,605.04,2.99255665]
[1746603707108,0.30345426,606.19,605.04,2.99255665]
[1746603712112,0.2873409,606.18,605.04,2.99255665]
[1746603712612,0.30345426,606.17,605.04,2.99255665]
[1746603714914,0.28735039,606.16,605.04,2.99255665]
[1746603715413,0.30345426,606.15,605.04,2.99255665]
[1746603717813,0.30345426,606.19,605.04,2.99255665]
[1746603718111,0.28735039,606.14,605.04,2.99255665]
[1746603718514,0.30345426,606.13,605.04,2.99255665]
[1746603722518,0.28735039,606.14,605.04,2.99255665]
[1746603722711,0.30349345,606.13,605.04,2.99255665]
[1746603726719,0.30349345,606.19,605.04,2.99255665]
[1746603726919,0.28735751,606.12,605.04,2.99255665]
[1746603729524,0.32992411,606.2,605.04,2.99255665]
[1746603729925,0.28724959,606.19,605.04,2.99255665]
[1746603730223,0.59074361,606.19,605.04,2.99255665]
[1746603730623,0.30349402,606.18,605.04,2.99255665]
[1746603732924,0.28735039,606.17,605.04,2.99255665]
[1746603733423,0.30349402,606.16,605.04,2.99255665]
[1746603738727,0.28736107,606.15,605.04,2.99255665]
[1746603739331,0.30349402,606.14,605.04,2.99255665]
[1746603741530,0.32992411,606.2,605.04,2.99255665]
[1746603741729,0.28736344,606.13,605.04,2.99255665]
[1746603742235,0.30350852,606.12,605.04,2.99255665]
[1746603744137,0.28736344,606.13,605.04,2.99255665]
[1746603744437,0.30350844,606.12,605.04,2.99255665]
[1746603746335,0.28736344,606.13,605.04,2.99255665]
[1746603747536,0.32992411,606.2,605.04,2.99255665]
[1746603747937,0.28730769,606.19,605.04,2.99255665]
[1746603750439,0.32992411,606.2,605.04,2.99255665]
[1746603750733,0.28735751,606.18,605.04,2.99255665]
[1746603753537,0.32992411,606.2,605.04,2.99255665]
[1746603753942,0.28722825,606.19,605.04,2.99255665]
[1746603756641,0.32992411,606.2,605.04,2.99255665]
[1746603756943,0.28735751,606.18,605.04,2.99255665]
[1746603757446,0.30351483,606.17,605.04,2.99255665]
[1746603759249,0.28735751,606.18,605.04,2.99255665]
[1746603759550,0.30350239,606.17,605.04,2.99255665]
[1746603762851,0.28735276,606.16,605.04,2.99255665]
[1746603763048,0.30350239,606.15,605.04,2.99255665]
[1746603764145,0.28735276,606.16,605.04,2.99255665]
[1746603764452,0.30350297,606.15,605.04,2.99255665]
[1746603765752,0.28735514,606.14,605.04,2.99255665]
[1746603766252,0.30350297,606.13,605.04,2.99255665]
[1746603768957,0.28735039,606.12,605.04,2.99255665]
[1746603769252,0.30350297,606.11,605.04,2.99255665]
[1746603771858,0.28735988,606.12,605.04,2.99255665]
[1746603772158,0.30350297,606.11,605.04,2.99255665]
[1746603774662,0.30350297,606.19,605.04,2.99255665]
[1746603774858,0.28735039,606.12,605.04,2.99255665]
[1746603775162,0.30350297,606.11,605.04,2.99255665]
[1746603777860,0.28735988,606.12,605.04,2.99255665]
[1746603778967,0.30350209,606.11,605.04,2.99255665]
[1746603780463,0.28735988,606.12,605.04,2.99255665]
[1746603780665,0.32992411,606.2,605.04,2.99255665]
[1746603780968,0.30350198,606.11,605.04,2.99255665]
[1746603781563,0.30350198,606.19,605.04,2.99255665]
[1746603782565,0.28735039,606.18,605.04,2.99255665]
[1746603782870,0.30350198,606.17,605.04,2.99255665]
[1746603783670,0.30350198,606.19,605.04,2.99255665]
[1746603783870,0.28735276,606.16,605.04,2.99255665]
[1746603784569,0.30350198,606.15,605.04,2.99255665]
[1746603786868,0.28735514,606.14,605.04,2.99255665]
[1746603787572,0.30350198,606.13,605.04,2.99255665]
[1746603789770,0.28735751,606.12,605.04,2.99255665]
[1746603790176,0.30350198,606.11,605.04,2.99255665]
[1746603792878,0.28735988,606.12,605.04,2.99255665]
[1746603793277,0.30350198,606.11,605.04,2.99255665]
[1746603796080,0.28735039,606.12,605.04,2.99255665]
[1746603796279,0.30350198,606.11,605.04,2.99255665]
[1746603798781,0.30350198,606.19,605.04,2.99255665]
[1746603798982,0.28735039,606.12,605.04,2.99255665]
[1746603799281,0.30350198,606.11,605.04,2.99255665]
[1746603807892,0.28735988,606.12,605.04,2.99255665]
[1746603808192,0.30350198,606.11,605.04,2.99255665]
[1746603809590,0.32992411,606.2,605.04,2.99255665]
[1746603819599,0.30345424,606.19,605.04,2.99255665]
[1746603821802,0.32992411,606.2,605.04,2.99255665]
[1746603822008,0.30345429,606.19,605.04,2.99255665]
[1746603825110,0.32992411,606.2,605.04,2.99255665]
[1746603825510,0.30345424,606.19,605.04,2.99255665]
[1746603829114,0.32992411,606.2,605.04,2.99255665]
[1746603829411,0.30345278,606.19,605.04,2.99255665]
[1746603830113,0.32992411,606.2,605.04,2.99255665]
[1746603840323,0.30344275,606.19,605.04,2.99255665]
[1746603841624,0.32992411,606.2,605.04,2.99255665]
[1746603842224,0.30344333,606.19,605.04,2.99255665]
[1746603843027,0.32992411,606.2,605.04,2.99255665]
[1746603844428,0.30344655,606.19,605.04,2.99255665]
[1746603846428,0.28722469,606.29,605.04,2.99255665]
[1746603847525,0.69082753,607.03,605.04,2.99255665]
[1746603847725,0.28720573,606.39,605.04,2.99255665]
[1746603847925,0.32948386,607.01,605.04,2.99255665]
[1746603848124,0.28719032,606.39,605.04,2.99255665]
[1746603848428,0.32948386,607.01,605.04,2.99255665]
[1746603848827,0.28719032,606.39,605.04,2.99255665]
[1746603849128,0.30335528,607.0,605.04,2.99255665]
[1746603849428,0.28719151,606.39,605.04,2.99255665]
[1746603849630,0.32950014,606.98,605.04,2.99255665]
[1746603849928,0.28719388,606.39,605.04,2.99255665]
[1746603850129,0.30335356,606.97,605.04,2.99255665]
[1746603850424,0.32951643,606.95,605.04,2.99255665]
[1746603850728,0.30335356,606.94,605.04,2.99255665]
[1746603850929,0.32953272,606.92,605.04,2.99255665]
[1746603851429,0.59055218,606.91,605.04,2.99255665]
[1746603851630,0.32954901,606.89,605.04,2.99255665]
[1746603852228,0.30335356,606.88,605.04,2.99255665]
[1746603852430,0.3295653,606.86,605.04,2.99255665]
[1746603852623,0.30335356,606.85,605.04,2.99255665]
[1746603852828,0.32958159,606.83,605.04,2.99255665]
[1746603853231,0.30335227,606.82,605.04,2.99255665]
[1746603853530,0.32959789,606.8,605.04,2.99255665]
[1746603854033,0.30335227,606.79,605.04,2.99255665]
[1746603854229,0.32960875,606.78,605.04,2.99255665]
[1746603854630,0.30335227,606.77,605.04,2.99255665]
[1746603854840,0.32961961,606.76,605.04,2.99255665]
[1746603855326,0.30335227,606.75,605.04,2.99255665]
[1746603855531,0.32963048,606.74,605.04,2.99255665]
[1746603855933,0.30335227,606.73,605.04,2.99255665]
[1746603856133,0.32964135,606.72,605.04,2.99255665]
[1746603856432,0.30335227,606.71,605.04,2.99255665]
[1746603856636,0.32965221,606.7,605.04,2.99255665]
[1746603856934,0.30335227,606.69,605.04,2.99255665]
[1746603857134,0.32966308,606.68,605.04,2.99255665]
[1746603857636,0.30335227,606.67,605.04,2.99255665]
[1746603857840,0.32967395,606.66,605.04,2.99255665]
[1746603858234,0.30335227,606.65,605.04,2.99255665]
[1746603858437,0.32968482,606.64,605.04,2.99255665]
[1746603858940,0.30335227,606.63,605.04,2.99255665]
[1746603859236,0.32969569,606.62,605.04,2.99255665]
[1746603859633,0.30335227,606.61,605.04,2.99255665]
[1746603859838,0.32970656,606.6,605.04,2.99255665]